Cogmind - Beta 16.1 @@@ ROGUE MODE // 2026.02.23 @ 21:46:41 Player: TheSkyeDoctor Result: Destroyed by S-10 Pest via exploding Compression Vault Performance ------------- Evolutions (1) 500 Regions Visited (3) 600 Robots Destroyed (44) 220 Value Destroyed (983) 983 Prototype IDs (1) 20 Alien Tech Used (0) 0 Bonus (0) 0 TOTAL SCORE: 2323 Bonus ------- None Cogmind --------- Core Integrity 0/400 Matter 263/300 Energy 265/265 System Corruption 11% Temperature Cool (71) Movement Treading (240) Ox1 Location -9/Storage Parts ------- > --- POWER (1) -------- Improved Ion Engine > --- PROPULSION (2) --- Light Treads > --- UTILITY (3) ------ Medium Storage Unit Structural Scanner > --- WEAPON (3) ------- Heavy Hammer > --- INVENTORY (10) --- Wheel Compact Wheel Armored Wheel High-capacity Storage Unit High-capacity Matter Pod (200) Improved Terrain Scanner Propulsion Shielding Peak State ------------ > --- POWER ------------ Ion Engine > --- PROPULSION ------- Light Treads Light Treads > --- UTILITY ---------- Medium Storage Unit High-capacity Battery Seismic Detector > --- WEAPON ----------- Advanced Beam Cannon Assault Rifle Great Maul > --- INVENTORY -------- Ion Engine Light Treads Light Treads Wheel Compact Wheel Structural Scanner Improved Terrain Scanner Small Laser [Rating: 14] Favorites ----------- Power Ion Engine Engine Ion Engine Propulsion Light Treads Treads Light Treads Utility Medium Storage Unit Device Structural Scanner Storage Medium Storage Unit Protection Propulsion Shielding Weapon Assault Rifle Energy Gun Small Laser Energy Cannon Advanced Beam Cannon Ballistic Gun Assault Rifle Launcher EMP Blaster Impact Weapon Great Maul Build | -11 -10 -9 -9 ------- Run | Yrd Mat Mat Sto Slots Evolved 2 | . . 2 . Power . | . . . . Propulsion . | . . . . Utility 1 | . . 1 . Weapon 1 | . . 1 . Parts Attached 21 | 7 1 5 8 Power 3 | 1 . 1 1 Engine 3 | 1 . 1 1 Core . | . . . . Reactor . | . . . . Propulsion 5 | 2 . . 3 Treads 5 | 2 . . 3 Leg . | . . . . Wheel . | . . . . Hover . | . . . . Flight . | . . . . Utility 7 | 2 1 2 2 Device 2 | 1 . 1 . Storage 4 | 1 1 1 1 Processor . | . . . . Hackware . | . . . . Protection 1 | . . . 1 Artifact . | . . . . Weapon 6 | 2 . 2 2 Energy Gun 1 | 1 . . . Energy Cannon 1 | . . 1 . Ballistic Gun 1 | 1 . . . Ballistic Cannon . | . . . . Launcher 1 | . . . 1 Special Weapon . | . . . . Impact Weapon 2 | . . 1 1 Slashing Weapon . | . . . . Piercing Weapon . | . . . . Special Melee Weapon . | . . . . Unidentified Prototypes 1 | . . 1 . Parts Lost 14 | . . 2 12 Power 2 | . . 1 1 Propulsion 4 | . . . 4 Utility 3 | . . 1 2 Weapon 5 | . . . 5 Highest Loss Streak 4 | . . 2 4 To Critical Strikes . | . . . . Average Backups 6 | 3 7 7 7 Power . | . 1 . . Propulsion 3 | 1 3 4 3 Utility 2 | . 2 1 3 Weapon . | . . . . Tool/Special . | . . . . Unused Backups 8 | . . 2 6 Power . | . . . . Propulsion 3 | . . . 3 Utility 3 | . . . 3 Weapon 2 | . . 2 . Tool/Special . | . . . . Average Slot Usage (%) 92 | . 100 99 80 Engine 11 | . 14 11 10 Treads 22 | . 28 22 20 Device 11 | . 14 11 11 Storage 19 | . 14 22 18 Protection 1 | . . . 2 Energy Gun 4 | . 14 3 1 Energy Cannon 4 | . . 7 4 Ballistic Gun 7 | . 14 11 . Impact Weapon 7 | . . 10 8 Peak Build Rating 14 | 7 8 14 14 Average Rating 10 | 5 7 12 10 On Entrance 7 | . 7 8 13 Avg Prop Armor Cover (%) . | . . . . Naked Turns . | . . . . Heaviest Build 30 | 14 19 30 30 Greatest Support 40 | 40 40 40 40 Greatest Overweight (x) 1 | 1 . . 1 Average Overweight (x) . | . . . . Largest Inventory Capacity 20 | 8 10 10 20 Average Capacity 9 | 7 8 10 10 Most Carried 10 | 5 9 8 10 Average Carried 6 | 3 7 7 7 Final Capacity 10 | 8 10 10 10 Final Carried 9 | 4 9 7 7 Class Distribution -------------------- 100% | Mutant Dominant Class ---------------- Mutant | -10/Materials Mutant | -9/Materials Mutant | -9/Storage Resources | -11 -10 -9 -9 ----------- Run | Yrd Mat Mat Sto Matter Collected 797 | 305 44 159 289 Remotely . | . . . . Salvage Created 1228 | 166 80 517 465 Parts 66 | 14 10 26 16 Haulers Intercepted . | . . . . Recyclers Shooed . | . . . . Parts Field Recycled . | . . . . Retrieved Matter . | . . . . Parts Self-Destructed . | . . . . Prevented . | . . . . Parts Restored . | . . . . Kills | -11 -10 -9 -9 ------- Run | Yrd Mat Mat Sto Combat Hostiles Destroyed 34 | . 6 15 13 Melee 6 | . . . 6 Guns 12 | . 6 6 . Cannons 13 | . . 9 4 Classes Destroyed 9 | 3 1 5 . Worker 1 | 1 . . . Builder 1 | . . 1 . Tunneler 4 | 4 . . . Recycler 1 | 1 . . . Operator 1 | . . 1 . Watcher 2 | . . 2 . Swarmer 15 | . 6 8 1 Grunt 13 | . . 5 8 Sentry 6 | . . 2 4 Best Kill Streak 10 | 2 3 10 7 Combat Bots Only 7 | . 3 7 7 Max Kills in Single Turn 2 | 1 2 2 1 Gunslinging 1 | . 1 . . Exploded . | . . . . Melee 1 | . . . 1 Uniques/NPCs Destroyed . | . . . . Combat | -11 -10 -9 -9 -------- Run | Yrd Mat Mat Sto Hostile Shots Fired 217 | . 23 75 119 Missed 55 | . 6 16 33 Hits 162 | . 17 59 86 Projectile 162 | . 17 59 86 AOE 1 | . . . 1 Critical Strikes 4 | . . 1 3 Damage Taken 2177 | . 136 603 1438 Core 483 | . 33 90 360 Absorbed by Shields . | . . . . Redirected to Shielding 50 | . . . 50 Core Remaining (%) 93 | 100 86 . . Volleys Fired 76 | 15 8 38 15 Largest 2 | 2 2 2 2 Hottest 108 | 60 60 88 108 Shots Fired 148 | 30 16 76 26 Gun 104 | 30 16 47 11 Cannon 41 | . . 29 12 Launcher 3 | . . . 3 Special . | . . . . Kinetic 63 | 15 8 38 2 Thermal 82 | 15 8 38 21 Explosive . | . . . . Electromagnetic 3 | . . . 3 Robot Hit Streak 11 | 11 6 6 5 Robot Miss Streak 6 | 1 1 6 2 Penetration Max . | . . . . Secondary Targets 2 | . 2 . . Max Gunslinging Chain 1 | . 1 . . Shots Hit Robots 121 | 23 11 48 39 Core Hits 50 | 7 7 26 10 Critical Kills 1 | . . . 1 Critical Parts Destroyed 6 | . . . 6 Critical Strikes 8 | . . . 8 Smash 8 | . . . 8 Melee Attacks 65 | . . 13 52 Impact 65 | . . 13 52 Slashing . | . . . . Piercing . | . . . . Sneak Attacks 1 | . . 1 . Combat Hostiles . | . . . . Follow-up Attacks . | . . . . Damage Inflicted 2723 | 277 142 1040 1264 Guns 804 | 277 142 328 57 Cannons 594 | . . 409 185 Explosions 98 | . . . 98 Melee 1224 | . . 303 921 Ramming 3 | . . . 3 Kinetic 506 | 169 65 249 23 Thermal 892 | 108 77 488 219 Explosive 26 | . . . 26 Electromagnetic 72 | . . . 72 Impact 1224 | . . 303 921 Slashing . | . . . . Piercing . | . . . . Highest Corruption 11 | . . . 11 Average Corruption 11 | . . . 11 Corruption Purged . | . . . . Corruption Blocked . | . . . . Effects 9 | . . . 9 Message Errors 2 | . . . 2 Matter Fused 3 | . . . 3 Heat Flow Errors 1 | . . . 1 Energy Discharges 1 | . . . 1 Parts Rejected 1 | . . . 1 Data Loss (minor) 1 | . . . 1 Overload Shots . | . . . . Overflow Damage 250 | . . 3 247 Projectiles . | . . . . Explosions 5 | . . . 5 Melee 245 | . . 3 242 Knockbacks 5 | . . 3 2 Impact 5 | . . 3 2 Kinetic . | . . . . Secondary . | . . . . Self-Inflicted Damage 71 | . . . 71 Shots 2 | . . . 2 Rammed . | . . . . Targets Rammed 1 | . . . 1 Kicked . | . . . . Crushed 1 | . . . 1 Highest Temperature 223 | . . 223 198 Average Temperature 64 | . . 61 67 Received Heat Transfer 618 | . . 216 402 Siege Activations . | . . . . Martial Activations . | . . . . Shielding Activations . | . . . . Robots Disrupted . | . . . . Combat Hostiles . | . . . . Robots Corrupted 3 | . . . 3 Combat Hostiles 3 | . . . 3 Parts Fried 2 | . . . 2 Impact Corruptions 11 | . . 1 10 Robots Melted . | . . . . Combat Hostiles . | . . . . Parts Melted 3 | . 1 1 1 Heat Transferred 1748 | 250 175 915 408 Parts Sabotaged . | . . . . Parts Stolen . | . . . . Parts Stripped . | . . . . Power Chain Reactions . | . . . . Alert | -11 -10 -9 -9 ------- Run | Yrd Mat Mat Sto Maximum Alert Level 1 | . . 1 1 Low Security (%) 82 | 100 100 82 67 Level 1 17 | . . 17 32 Level 2 . | . . . . Level 3 . | . . . . Level 4 . | . . . . Level 5 . | . . . . High Security . | . . . . Max Security . | . . . . Peak Influence 278 | 10 70 278 239 Initial 103 | . . 8 103 Average 84 | 1 25 65 157 Influence Increases 983 | 30 140 429 384 Destroy 0b10 Robot/C 680 | . 120 300 260 Destroy 0b10 Robot/NC 50 | 30 . 20 . Destroy Leader 144 | . 20 54 70 Successful Hack 11 | . . . 11 Disable Machine 30 | . . . 30 Destroy Structure 23 | . . 10 13 Lose Combat Pursuer 45 | . . 45 . Influence Decreases 934 | 30 120 204 580 Entered New Map 154 | . . 12 142 Time Decay 650 | 30 120 182 318 Lost Part 130 | . . 10 120 Squads Dispatched 7 | . 2 2 3 Investigation . | . . . . Extermination . | . . . . Reinforcement 4 | . 2 2 . Assault . | . . . . Garrison 3 | . . . 3 Intercept . | . . . . Searches Triggered . | . . . . Construction Impeded . | . . . . Haulers Reinforced . | . . . . Active Scanning Responses . | . . . . Cargo Convoy Interrupts . | . . . . Stealth | -11 -10 -9 -9 --------- Run | Yrd Mat Mat Sto Distress Signals 4 | . 1 2 1 Communications Jammed . | . . . . Distress Signals . | . . . . Times Spotted 59 | . 10 30 19 Peak Tracking Total 8 | . 4 8 7 Tactical Retreats 1 | . . 1 . Traps | -11 -10 -9 -9 ------- Run | Yrd Mat Mat Sto Traps Triggered . | . . . . Indirectly . | . . . . Trap Hack Attempts . | . . . . Triggered . | . . . . Disarmed . | . . . . Reprogrammed . | . . . . Reused . | . . . . Traps Extracted . | . . . . Installed . | . . . . Triggered . | . . . . Machines | -11 -10 -9 -9 ---------- Run | Yrd Mat Mat Sto Machines Disabled 2 | . . . 2 Max in Single Turn 1 | . . . 1 Machines Repaired . | . . . . Machines Dismantled . | . . . . Machines Sabotaged . | . . . . Overloaded Fab Kills . | . . . . Hacking | -11 -10 -9 -9 --------- Run | Yrd Mat Mat Sto Machines Accessed 3 | . 1 . 2 Terminals 3 | . 1 . 2 Fabricators . | . . . . Repair Stations . | . . . . Recycling Units . | . . . . Scanalyzers . | . . . . Garrison Access . | . . . . Total Hacks 4 | . 1 . 3 Successful 3 | . 1 . 2 Failed 1 | . . . 1 Catastrophic . | . . . . Database Lockouts . | . . . . Manual 3 | . 1 . 2 Terminals 4 | . 1 . 3 Fabricators . | . . . . Repair Stations . | . . . . Recycling Units . | . . . . Scanalyzers . | . . . . Garrison Access . | . . . . Terminal Hacks 1 | . . . 1 Open Door 1 | . . . 1 Fabricator Hacks . | . . . . Repair Station Hacks . | . . . . Recycling Unit Hacks . | . . . . Scanalyzer . | . . . . Garrison Access Hacks . | . . . . Unauthorized Hacks 2 | . 1 . 1 Terminals 2 | . 1 . 1 Botnet 2 | . 1 . 1 Fabricators . | . . . . Repair Stations . | . . . . Recycling Units . | . . . . Scanalyzers . | . . . . Garrison Access . | . . . . Data Cores Recovered . | . . . . Used . | . . . . Hacking Detections 1 | . . . 1 Full Trace Events . | . . . . Feedback Events . | . . . . Feedback Blocked . | . . . . Robot Schematics Acquired . | . . . . Robots Built . | . . . . Authchips . | . . . . Time . | . . . . Total Robot Build Rating . | . . . . Part Schematics Acquired . | . . . . Parts Built . | . . . . Authchips . | . . . . Time . | . . . . Total Part Build Rating . | . . . . Part Studies Acquired . | . . . . Parts Repaired . | . . . . Time . | . . . . Parts Recycled . | . . . . Recycled Matter . | . . . . Retrieved Matter . | . . . . Retrieved Components . | . . . . Parts Scanalyzed . | . . . . Part Schematics Acquired . | . . . . Parts Damaged . | . . . . Bothacking | -11 -10 -9 -9 ------------ Run | Yrd Mat Mat Sto Used RIF Installer . | . . . . Robots Hacked . | . . . . Non-combat . | . . . . Combat . | . . . . Robot Hacks Applied . | . . . . Relay Couplers Released . | . . . . Fabnet Peak Effective % . | . . . . Robots Rewired . | . . . . Allies Hacked . | . . . . Hacks Repelled . | . . . . Allies | -11 -10 -9 -9 -------- Run | Yrd Mat Mat Sto Total Allies . | . . . . Largest Group . | . . . . Highest-Rated Group . | . . . . Highest-Rated Ally . | . . . . Total Orders . | . . . . Ally Attacks . | . . . . Total Damage . | . . . . Kills . | . . . . Allies Corrupted . | . . . . Allies Melted . | . . . . Intel | -11 -10 -9 -9 ------- Run | Yrd Mat Mat Sto Active Infowar (turns) 1831 | 12 351 757 711 Structural 953 | . . 242 711 Seismic 878 | 12 351 515 . Robot Analysis Total . | . . . . Derelict Logs Recovered . | . . . . Drone Launches . | . . . . Drone Recoveries . | . . . . Exploration | -11 -10 -9 -9 ------------- Run | Yrd Mat Mat Sto Turns Passed 2029 | 208 351 759 711 Spaces Moved 849 | 105 195 265 284 Core 23 | 23 . . . Treads 826 | 82 195 265 284 Legs . | . . . . Wheels . | . . . . Hover . | . . . . Flight . | . . . . Fastest Speed 50 | 50 160 160 160 Average Speed 157 | 139 160 160 160 Slowest Speed 240 | 160 160 160 240 Overloaded Moves . | . . . . Propulsion Burnouts . | . . . . Robots Hopped . | . . . . Potential Cave-ins . | . . . . Cave-ins Triggered 1 | . . . 1 Exploration Rate (%) 26 | 5 37 30 34 Regions Visited 3 Branch Regions 1 Pre-discovered Areas . | . . . . Known Exits Taken . | . . . . Unknown Exits Taken 3 | 1 1 1 . Scrap Searched . | . . . . Spaces Dug 10 | . . 9 1 Terrain Destroyed 21 | . . 9 12 Melee 9 | . . 8 1 Projectile 1 | . . 1 . AOE 11 | . . . 11 Terrain Rammed . | . . . . Walls Destroyed . | . . . . Machines Disabled . | . . . . Actions | -11 -10 -9 -9 --------- Run | Yrd Mat Mat Sto Total 1264 | 136 219 499 410 Wait 219 | . 10 173 36 Move 846 | 104 194 264 284 Hop . | . . . . Pick Up 29 | 10 5 4 10 Fast Attach 1 | 1 . . . Attach 19 | 6 . 4 9 Detach . | . . . . Swap 4 | . 1 1 2 Drop 4 | . 1 2 1 Fire 76 | 15 8 38 15 Melee 65 | . . 13 52 Ram . | . . . . Kick . | . . . . Crush 1 | . . . 1 Escape Stasis . | . . . . Rewire . | . . . . Trap . | . . . . Miscellaneous . | . . . . Route ------- -11/Scrapyard -10/Materials (discovered 2 exits: [*Mat] / [*Min]) -9/Materials (discovered 2 exits: [*Min] / *Sto) -9/Storage History --------- Turn | Location | Event 8 | -11/Scrapyard | Discovered new exit (range 16) 209 | -11/Scrapyard | Entered Materials 241 | -10/Materials | Discovered new exit (range 9) 313 | -10/Materials | Build established: Mutant 524 | -10/Materials | Discovered new exit (range 11) 560 | -10/Materials | Entered another Materials area 560 | -9/Materials | Evolved 2 slots: Utility x1, Weapon x1 1161 | -9/Materials | Destroyed 7 combat bots 1246 | -9/Materials | Discovered new exit (range 10) 1246 | -9/Materials | Discovered new exit (range 7) 1319 | -9/Materials | Entered Storage 1366 | -9/Storage | Garrison activated, responded to threat 1430 | -9/Storage | Lost 3 parts (2n1w) 1441 | -9/Storage | Destroyed 7 combat bots 1480 | -9/Storage | Core integrity fell below 50% 1825 | -9/Storage | Crushed by falling debris 1825 | -9/Storage | System corruption reached 10% 1856 | -9/Storage | Lost 4 parts (1p1n1u1w) 1982 | -9/Storage | Core integrity fell below 20% 2030 | -9/Storage | Destroyed by S-10 Pest via exploding Compression Vault Last Messages --------------- U-05 Engineer builds a Wall. U-05 Engineer builds a Door. U-05 Engineer builds a Wall. System corrupted: Energy discharge (-68). Crushed S-10 Pest. S-10 Pest destroyed. Acquired Hvy. Hammer. S-10 Pest destroyed. R-06 Scavenger collects Lgt. Assault Rifle. Propulsion Shielding destroyed. Lgt. Treads destroyed. R-06 Scavenger collects Flight Unit. System corrupted: Heat flow error (+220). K-01 Serf collects debris. Y-45 Defender suffers critical hit (Smash). K-01 Serf collects debris. R-06 Scavenger collects Flight Unit. K-01 Serf collects debris. R-06 Scavenger collects Lgt. Ion Engine. Compression Vault explodes. Map ----- +----------------------------------------------------+ | ???????######????????????????????????????????????? | | ???????# | ????????????????????????????????????? | | ???????? ?????????????????????????????????????? | | ???????? ?????????????????????????????????????? | | ??????## [? ??????????????????????????????????? | | ??????## ||???????????????????????????????????? | | ?## ??## ???????????????????????????????????? | | ?##""""# ????????????????????????????????????? | | ?### ## ????????????????????????????????????? | | ###T # " " ????????????????????????????????????? | | #### ## "R"?????????????????????????????????????? | | # ## """ ????????????????????????????????????? | | + ##+####????????????????????????????????????? | | # ##????????????????????????????????????? | | # ##????????????????????????????????????? | | ###### ##???? ##???????????????????????????? | | ######### ##???? ##???????????????????????????? | | #####??## ##???? ####?????????????????????????? | | ???????## ##??## ######## ????????????????????? | | ???????## ##??## # ###### ????????????????????? | | ######?## ##??## # # ????????????????????? | | ######### ##??## # """ # ????????????????????? | | ##### ##??## # """ # ????????????????????? | | % ##??## # """ # ????????????????????? | | T % ###### # krr # ????????????????????? | | ##+##+####### # @ # ????????????????????? | | # ## % % #### #r srY ##????????????????? | | # # #### # # ##????????????????? | | # ## #### # # ##????????????????? | | # ## + # """ # ##????????????????? | | # ## == #### # """ # ? ##????????????????? | | # == #### # """ # ? ##????????????????? | | # == #### # ]# ?###????????????????? | | # #### ##+##### ????????????????????? | | # #### ##### ##??????????????????? | | # ####+######### ##### #####???????????????? | | # #### ######### ##### #####???????????????? | | + #### # ==#### ##???????????????? | | # # ==#### ##???????????????? | | # % + ==#### ##???????????????? | | # #### ##T####### ???????????? | | # #### ###########+## ###############???????????? | | # #### #####?## ##############???????????? | | # #### ##??#### ##???????????????????????? | | #=#### ###?#### ##???????????????????????? | | #+####+###?##"" ##???????????????????????? | | %! % ##?##"Y ###???????????????????????? | | """ " ##?##"" """ ###???????????????????????? | | "=!!" ##?#### """ ##????????????????????????? | | """"" ##?#### """ ##????????????????????????? | +----------------------------------------------------+ Best States ------------- Heat Dissipation 28 Energy Generation 12 Energy Capacity 500 Matter Stores 300 Matter Capacity 300 Sight Range 16 Terrain Scan Density 10 Propulsion Shielding 33 Evasion (%) 50 Recoil Reduction 2 Item Schematics ----------------- None Robot Schematics ------------------ None Fabricated ------------ Nothing Repaired ---------- Nothing Studied --------- None Alien Tech Used ----------------- None Achievements -------------- Part-time Excavator Watch This! Challenges ------------ None Game ------ Seed AerolevCloakForcegen Manual? 0 Play Time 00:17:06 Cumulative 38.6 hours Start 2026.02.23 @ 21:31:22 End 2026.02.23 @ 21:46:41 Sessions 1 Manual Loads 0 Difficulty Rogue Special Mode None Game No. 91 Rogue 91 Adventurer 0 Explorer 0 Win Type - Total 0 Types 0/0/0/0/0/0/0/0/0/0 Lore% 29 Gallery% 35 Achievement% 27 Wizard Run 0 Options --------- Layout 1 ASCII 0 Keyboard 0 Movement Mouse Keybinds 0 Fullscreen 1 Font 24/Smallcaps Map View 50x35 Zoom Use 0% Tactical HUD 0 Map Filters NONE Filters NONE Steam 1 RUN: 25207648-a077-4412-8152-0a91e771b660